fUSD/lending_fUSD_20251112
["ID","MTS","AMOUNT","RATE_DAILY","PERIOD"]
[393783700,1762981980751,-500.0,0.00054794,120]
[393783701,1762981980793,-500.0,0.00054794,120]
[393783702,1762981980835,-1210.02,0.00054794,120]
[393783703,1762981980880,-500.0,0.00054794,120]
[393783704,1762981980924,-150.0,0.00054795,120]
[393783705,1762981980969,-150.0,0.00054795,120]
[393783706,1762981981012,-150.0,0.00054795,120]
[393783707,1762981981057,-150.0,0.00054795,120]
[393783708,1762981981100,-150.0,0.00054795,120]
[393783709,1762981981142,-150.0,0.00054795,120]
[393783710,1762981981190,-150.0,0.00054795,120]
[393783711,1762981981238,-150.0,0.00054795,120]
[393783712,1762981981285,-150.0,0.00054795,120]
[393783713,1762981981329,-150.0,0.00054795,120]
[393783714,1762981981515,-150.0,0.00054795,120]
[393783715,1762981981559,-150.0,0.00054795,120]
[393783716,1762981981603,-150.0,0.00054795,120]
[393783717,1762981981643,-150.0,0.00054795,120]
[393783718,1762981981888,-150.0,0.00054795,120]
[393783719,1762981981936,-150.0,0.00054795,120]
[393783720,1762981981980,-160.8055031,0.00054795,120]
[393783721,1762981982024,-150.0,0.00054795,120]
[393783722,1762981982069,-738.0,0.00054795,30]
[393783723,1762981982111,-150.0,0.00054868,120]
[393783724,1762981982152,-150.0,0.00054876,120]
[393783725,1762981982192,-150.0,0.00054899,120]
[393783726,1762981982233,-150.0,0.00054901,120]
[393783727,1762981982273,-150.0,0.0005491,120]
[393783728,1762981982313,-150.0,0.00054935,120]
[393783729,1762981982353,-150.0,0.00054941,120]
[393783730,1762981982391,-150.0,0.00054957,120]
[393783731,1762981982433,-150.0,0.00054962,120]
[393783732,1762981982472,-150.0,0.00054968,120]
[393783733,1762981982510,-1000.0,0.00054999,120]
[393783734,1762981982549,-150.0,0.00055,60]
[393783735,1762981982589,-150.0,0.00055003,120]
[393783736,1762981982630,-150.0,0.00055007,120]
[393783737,1762981982668,-150.0,0.00055014,120]
[393783738,1762981982708,-150.0,0.00055026,120]
[393783739,1762981982748,-150.0,0.00055039,120]
[393783740,1762981982785,-150.0,0.00055055,120]
[393783741,1762981982826,-593.14,0.00055068,120]
[393783742,1762981982865,-419.85548365,0.00055068,120]
[393783743,1762981982905,-500.0,0.00055068,120]
[393783744,1762981982945,-457.8053779,0.00055068,120]
[393783745,1762981982989,-500.0,0.00055068,120]
[393783746,1762981983032,-3230.71,0.00055068,120]
[393783747,1762981983075,-500.0,0.00055068,120]
[393783748,1762981983123,-500.0,0.00055068,120]
[393783749,1762981983169,-575.62,0.00055068,120]
[393783750,1762981983218,-500.0,0.00055068,120]
[393783751,1762981983264,-500.0,0.00055068,120]
[393783752,1762981983310,-175.97465042,0.00055068,120]
[393783753,1762981983357,-500.0,0.00055068,120]
[393783754,1762981983403,-549.26681531,0.00055068,120]
[393783755,1762981983450,-232.20066035,0.00055068,120]
[393783756,1762981983497,-500.0,0.00055068,120]
[393783757,1762981983545,-500.0,0.00055068,120]
[393783758,1762981983590,-1210.02,0.00055068,120]
[393783759,1762981983642,-193.17430696,0.00055068,120]
[393783760,1762981983691,-150.0,0.00055076,120]
[393783761,1762981983741,-150.0,0.00055088,120]
[393783762,1762981983788,-150.0,0.00055107,120]
[393783763,1762981983835,-150.0,0.00055113,120]
[393783764,1762981983880,-150.0,0.0005512,120]
[393783765,1762981983925,-150.0,0.0005513,120]
[393783766,1762981983971,-150.0,0.00055142,120]
[393783767,1762981984016,-150.0,0.00055142,120]
[393783768,1762981984061,-150.0,0.00055161,120]
[393783769,1762981984107,-150.0,0.00055166,120]
[393783770,1762981984153,-150.0,0.00055201,120]
[393783771,1762981984210,-150.0,0.00055211,120]
[393783772,1762981984263,-150.0,0.00055217,120]
[393783773,1762981984315,-150.0,0.00055219,120]
[393783774,1762981984374,-150.0,0.00055228,120]
[393783775,1762981984427,-150.0,0.00055234,120]
[393783776,1762981984480,-150.0,0.00055257,120]
[393783777,1762981984534,-150.0,0.00055283,120]
[393783778,1762981984588,-150.0,0.00055298,120]
[393783779,1762981984640,-150.0,0.00055308,120]
[393783780,1762981984695,-150.0,0.00055315,120]
[393783781,1762981984747,-150.0,0.00055315,120]
[393783782,1762981984800,-150.0,0.00055315,120]
[393783783,1762981984853,-150.0,0.00055326,120]
[393783784,1762981984911,-593.14,0.00055342,120]
[393783785,1762981984974,-500.0,0.00055342,120]
[393783786,1762981985028,-500.0,0.00055342,120]
[393783787,1762981985078,-3230.71,0.00055342,120]
[393783788,1762981985134,-500.0,0.00055342,120]
[393783789,1762981985182,-500.0,0.00055342,120]
[393783790,1762981985236,-511.58526283,0.00055342,120]
[393783791,1762981985290,-500.0,0.00055342,120]
[393783792,1762981985348,-260.10326545,0.00055342,120]
[393783793,1762981985405,-500.0,0.00055342,120]
[393783794,1762981985460,-500.0,0.00055342,120]
[393783795,1762981985516,-1210.02,0.00055342,120]
[393783796,1762981985568,-738.0,0.00055343,30]
[393783797,1762981985618,-150.0,0.00055357,120]
[393783798,1762981985673,-150.0,0.00055364,120]
[393783799,1762981985724,-150.0,0.00055373,120]
[393783800,1762981985771,-153.0,0.0005538,30]
[393783801,1762981985820,-150.0,0.00055381,120]
[393783802,1762981985874,-150.0,0.00055419,120]
[393783803,1762981985930,-150.0,0.00055432,120]
[393783804,1762981985982,-150.0,0.00055445,120]
[393783805,1762981986037,-150.0,0.00055445,120]
[393783806,1762981986088,-150.0,0.00055454,120]
[393783807,1762981986139,-150.0,0.00055466,120]
[393783808,1762981986189,-150.0,0.00055489,120]
[393783809,1762981986239,-150.0,0.00055489,120]
[393783810,1762981986289,-150.0,0.00055498,120]
[393783811,1762981986342,-150.0,0.00055523,120]
[393783812,1762981986409,-150.0,0.00055527,120]
[393783813,1762981986475,-150.0,0.00055528,120]
[393783814,1762981986538,-150.0,0.00055538,120]
[393783815,1762981986593,-150.0,0.00055538,120]
[393783816,1762981986647,-150.0,0.00055575,120]
[393783817,1762981986699,-150.0,0.00055601,120]
[393783818,1762981986750,-150.0,0.00055604,120]
[393783819,1762981986799,-150.0,0.00055608,120]
[393783820,1762981986849,-593.14,0.00055616,120]
[393783821,1762981986899,-436.50024771,0.00055616,120]
[393783822,1762981986947,-500.0,0.00055616,120]
[393783823,1762981986998,-3230.71,0.00055616,120]
[393783824,1762981987050,-500.0,0.00055616,120]
[393783825,1762981987112,-386.07879673,0.00055616,120]
[393783826,1762981987157,-612.2238294,0.00055616,120]
[393783827,1762981987442,-500.0,0.00055616,120]
[393783828,1762981987506,-500.0,0.00055616,120]
[393783829,1762981987552,-1210.02,0.00055616,120]
[393783830,1762981987592,-150.0,0.00055627,120]
[393783831,1762981987635,-150.0,0.00055634,120]
[393783832,1762981987674,-150.0,0.00055639,120]
[393783833,1762981987718,-150.0,0.00055644,120]
[393783834,1762981987756,-150.0,0.00055662,120]
[393783835,1762981987794,-150.0,0.00055662,120]
[393783836,1762981987832,-150.0,0.00055662,120]
[393783837,1762981987872,-150.0,0.00055662,120]
[393783838,1762981987912,-150.0,0.00055674,120]
[393783839,1762981987954,-150.0,0.00055689,120]
[393783840,1762981987994,-150.0,0.0005572,120]
[393783841,1762981988035,-150.0,0.00055732,120]
[393783842,1762981988080,-1101.01,0.00055745,120]
[393783843,1762981988123,-150.0,0.00055748,120]
[393783844,1762981988170,-150.0,0.00055751,120]
[393783845,1762981988217,-150.0,0.00055771,120]
[393783846,1762981988261,-150.0,0.00055779,120]
[393783847,1762981988305,-150.0,0.00055802,120]
[393783848,1762981988350,-150.0,0.00055821,120]
[393783849,1762981988398,-150.0,0.00055836,120]
[393783850,1762981988445,-150.0,0.00055836,120]
[393783851,1762981988494,-150.0,0.00055836,120]
[393783852,1762981988538,-150.0,0.00055836,120]
[393783853,1762981988582,-150.0,0.00055852,120]
[393783854,1762981988624,-150.0,0.00055857,120]
[393783855,1762981988666,-593.14,0.0005589,120]
[393783856,1762981988707,-544.93,0.0005589,120]
[393783857,1762981988749,-185.02180969,0.0005589,120]
[393783858,1762981988790,-3230.71,0.0005589,120]
[393783859,1762981988834,-469.76,0.0005589,120]
[393783860,1762981988879,-500.0,0.0005589,120]
[393783861,1762981988924,-500.0,0.0005589,120]
[393783862,1762981988971,-1210.02,0.0005589,120]
[393783863,1762981989015,-738.0,0.00055891,30]
[393783864,1762981989069,-150.0,0.00055894,120]
[393783865,1762981989114,-150.0,0.0005591,120]
[393783866,1762981989161,-150.0,0.0005592,120]
[393783867,1762981989208,-150.0,0.00055933,120]
[393783868,1762981989264,-150.0,0.0005594,120]
[393783869,1762981989320,-150.0,0.00055951,120]
[393783870,1762981989371,-150.0,0.00055963,120]
[393783871,1762981989420,-150.0,0.00055968,120]
[393783872,1762981989478,-150.0,0.0005597,120]
[393783873,1762981989523,-1000.0,0.00055999,120]
[393783874,1762981989567,-1152.06967724,0.00056,120]
[393783875,1762981989613,-2000.0,0.00056,90]
[393783876,1762981989657,-822.51520138,0.00056,120]
[393783877,1762981989702,-150.0,0.00056009,120]
[393783878,1762981989745,-150.0,0.00056015,120]
[393783879,1762981989787,-150.0,0.00056041,120]
[393783880,1762981989829,-150.0,0.00056044,120]
[393783881,1762981989871,-150.0,0.00056061,120]
[393783882,1762981989912,-150.0,0.00056067,120]
[393783883,1762981989953,-150.0,0.00056069,120]
[393783884,1762981990000,-150.0,0.00056096,120]
[393783885,1762981990045,-150.0,0.00056096,120]
[393783886,1762981990086,-150.0,0.00056096,120]
[393783887,1762981990127,-150.0,0.00056096,120]
[393783888,1762981990172,-192.93,0.000561,120]
[393783889,1762981990215,-150.0,0.00056114,120]
[393783890,1762981990259,-150.0,0.00056138,120]
[393783891,1762981990302,-150.0,0.00056148,120]
[393783892,1762981990347,-593.14,0.00056164,120]
[393783893,1762981990388,-544.93,0.00056164,120]
[393783894,1762981990431,-3230.71,0.00056164,120]
[393783895,1762981990473,-500.0,0.00056164,120]
[393783896,1762981990517,-500.0,0.00056164,120]
[393783897,1762981990557,-1210.02,0.00056164,120]
[393783898,1762981990599,-150.0,0.00056176,120]
[393783899,1762981990641,-150.0,0.00056177,120]
[393783900,1762981990685,-150.0,0.00056183,120]
[393783901,1762981990731,-150.0,0.00056183,120]
[393783902,1762981990776,-150.0,0.00056188,120]
[393783903,1762981990821,-150.0,0.00056201,120]
[393783904,1762981990869,-150.0,0.00056252,120]
[393783905,1762981990917,-150.0,0.00056259,120]
[393783906,1762981990964,-150.0,0.00056261,120]
[393783907,1762981991012,-150.0,0.00056282,120]
[393783908,1762981991057,-150.0,0.00056282,120]
[393783909,1762981991103,-150.0,0.00056298,120]
[393783910,1762981991148,-150.0,0.00056306,120]
[393783911,1762981991193,-150.0,0.00056334,120]
[393783912,1762981991236,-150.0,0.0005634,120]
[393783913,1762981991280,-150.0,0.00056342,120]
[393783914,1762981991323,-150.0,0.00056356,120]
[393783915,1762981991367,-150.0,0.00056356,120]
[393783916,1762981991410,-150.0,0.00056356,120]
[393783917,1762981991456,-150.0,0.00056388,120]
[393783918,1762981991501,-2143.0,0.00056398,120]
[393783919,1762981991542,-155.0,0.000564,120]
[393783920,1762981991584,-150.0,0.00056402,120]
[393783921,1762981991627,-150.0,0.00056407,120]
[393783922,1762981991673,-150.0,0.00056414,120]
[393783923,1762981991719,-150.0,0.00056421,120]
[393783924,1762981991762,-593.14,0.00056438,120]
[393783925,1762981991806,-544.93,0.00056438,120]
[393783926,1762981991851,-3230.71,0.00056438,120]
[393783927,1762981991898,-500.0,0.00056438,120]
[393783928,1762981992108,-500.0,0.00056438,120]
[393783929,1762981992154,-1210.02,0.00056438,120]
[393783930,1762981992198,-738.0,0.00056439,30]
[393783931,1762981992241,-206.3313054,0.00056452,120]
[393783932,1762981992283,-150.0,0.0005646,120]
[393783933,1762981992325,-150.0,0.00056474,120]
[393783934,1762981992369,-150.0,0.00056481,120]
[393783935,1762981992413,-150.0,0.00056483,120]
[393783936,1762981992460,-150.0,0.00056491,120]
[393783937,1762981992504,-150.0,0.00056494,120]
[393783938,1762981992544,-153.0,0.000565,120]
[393783939,1762981992584,-150.0,0.00056503,120]
[393783940,1762981992622,-150.0,0.0005653,120]
[393783941,1762981992662,-150.0,0.0005653,120]
[393783942,1762981992701,-150.0,0.0005653,120]
[393783943,1762981992738,-150.0,0.0005653,120]
[393783944,1762981992777,-150.0,0.0005653,120]
[393783945,1762981992815,-150.0,0.0005653,120]
[393783946,1762981992856,-150.0,0.00056554,120]
[393783947,1762981992897,-150.0,0.00056564,120]
[393783948,1762981992939,-150.0,0.00056584,120]
[393783949,1762981992984,-150.0,0.00056601,120]
[393783950,1762981993027,-150.0,0.00056616,120]
[393783951,1762981993073,-150.0,0.00056623,120]
[393783952,1762981993128,-150.0,0.00056627,120]
[393783953,1762981993182,-150.0,0.00056642,120]
[393783954,1762981993236,-150.0,0.00056645,120]
[393783955,1762981993280,-150.0,0.00056654,120]
[393783956,1762981993322,-150.0,0.00056665,120]
[393783957,1762981993365,-150.0,0.00056668,120]
[393783958,1762981993407,-150.0,0.00056701,120]
[393783959,1762981993449,-150.0,0.00056703,120]
[393783960,1762981993492,-150.0,0.00056707,120]
[393783961,1762981993535,-593.14,0.00056712,120]
[393783962,1762981993575,-544.93,0.00056712,120]
[393783963,1762981993614,-3230.71,0.00056712,120]
[393783964,1762981993657,-500.0,0.00056712,120]
[393783965,1762981993702,-500.0,0.00056712,120]
[393783966,1762981993745,-1210.02,0.00056712,120]
[393783967,1762981993788,-150.0,0.00056747,120]
[393783968,1762981993832,-150.0,0.00056747,120]
[393783969,1762981993874,-150.0,0.00056761,120]
[393783970,1762981993915,-150.0,0.00056764,120]
[393783971,1762981993958,-150.0,0.00056773,120]
[393783972,1762981994001,-150.0,0.00056774,120]
[393783973,1762981994044,-150.0,0.0005681,120]
[393783974,1762981994089,-150.0,0.00056813,120]
[393783975,1762981994140,-150.0,0.00056828,120]
[393783976,1762981994194,-150.0,0.00056847,120]
[393783977,1762981994247,-150.0,0.00056877,120]
[393783978,1762981994292,-150.0,0.00056877,120]
[393783979,1762981994336,-150.0,0.00056877,120]
[393783980,1762981994379,-150.0,0.00056877,120]
[393783981,1762981994424,-150.0,0.00056905,120]
[393783982,1762981994475,-150.0,0.00056909,120]
[393783983,1762981994517,-150.0,0.00056919,120]
[393783984,1762981994558,-150.0,0.00056921,120]
[393783985,1762981994599,-150.0,0.00056963,120]
[393783986,1762981994641,-150.0,0.00056977,120]
[393783987,1762981994683,-150.0,0.00056981,120]
[393783988,1762981994724,-593.14,0.00056986,120]
[393783989,1762981994764,-544.93,0.00056986,120]
[393783990,1762981994805,-3230.71,0.00056986,120]
[393783991,1762981994848,-500.0,0.00056986,120]
[393783992,1762981994893,-500.0,0.00056986,120]
[393783993,1762981994939,-1210.02,0.00056986,120]
[393783994,1762981994985,-150.0,0.00056991,120]
[393783995,1762981995033,-150.0,0.00056992,120]
[393783996,1762981995081,-150.0,0.00056994,120]
[393783997,1762981995127,-1000.0,0.00056999,120]
[393783998,1762981995174,-3000.0,0.00057,120]
[393783999,1762981995218,-2000.0,0.00057,120]
[393784000,1762981995261,-150.0,0.00057025,120]
[393784001,1762981995302,-150.0,0.00057025,120]
[393784002,1762981995344,-150.0,0.00057046,120]
[393784003,1762981995385,-150.0,0.0005705,120]
[393784004,1762981995428,-150.0,0.00057067,120]
[393784005,1762981995471,-150.0,0.00057072,120]
[393784006,1762981995515,-150.0,0.00057085,120]
[393784007,1762981995555,-150.0,0.00057108,120]
[393784008,1762981995596,-150.0,0.00057132,120]
[393784009,1762981995635,-150.0,0.00057137,120]
[393784010,1762981995675,-150.0,0.00057141,120]
[393784011,1762981995720,-150.0,0.00057145,120]
[393784012,1762981995762,-150.0,0.00057153,120]
[393784013,1762981995804,-150.0,0.00057186,120]
[393784014,1762981995852,-150.0,0.00057189,120]
[393784015,1762981995898,-153.0,0.000572,120]
[393784016,1762981995946,-150.0,0.00057214,120]
[393784017,1762981995996,-1094.0,0.00057223,120]
[393784018,1762981996046,-150.0,0.00057224,120]
[393784019,1762981996095,-150.0,0.00057224,120]
[393784020,1762981996143,-150.0,0.00057235,120]
[393784021,1762981996190,-150.0,0.00057238,120]
[393784022,1762981996239,-593.14,0.0005726,120]
[393784023,1762981996284,-544.93,0.0005726,120]
[393784024,1762981996331,-3230.71,0.0005726,120]
[393784025,1762981996378,-500.0,0.0005726,120]
[393784026,1762981996427,-500.0,0.0005726,120]
[393784027,1762981996474,-1210.02,0.0005726,120]
[393784028,1762981996521,-150.0,0.00057287,120]
[393784029,1762981996566,-150.0,0.00057293,120]
[393784030,1762981996612,-174.58833304,0.00057309,30]
[393784031,1762981996656,-150.0,0.00057309,30]
[393784032,1762981996848,-282.35331648,0.00057309,30]
[393784033,1762981996894,-150.0,0.00057313,120]
[393784034,1762981996942,-150.0,0.00057316,120]
[393784035,1762981996993,-150.0,0.00057327,120]
[393784036,1762981997041,-150.0,0.00057339,120]
[393784037,1762981997085,-150.0,0.00057344,120]
[393784038,1762981997130,-150.0,0.00057361,120]
[393784039,1762981997174,-150.0,0.00057397,120]
[393784040,1762981997222,-150.0,0.00057397,120]
[393784041,1762981997265,-150.0,0.00057397,120]
[393784042,1762981997308,-150.0,0.00057397,120]
[393784043,1762981997349,-150.0,0.00057397,120]
[393784044,1762981997392,-150.0,0.00057397,120]
[393784045,1762981997436,-150.0,0.00057397,120]
[393784046,1762981997479,-150.0,0.00057397,120]
[393784047,1762981997521,-150.0,0.00057397,120]
[393784048,1762981997562,-150.0,0.00057397,120]
[393784049,1762981997602,-150.0,0.00057397,120]
[393784050,1762981997644,-155.0,0.000574,120]
[393784051,1762981997685,-150.0,0.00057434,120]
[393784052,1762981997724,-150.0,0.0005745,120]
[393784053,1762981997766,-150.0,0.00057455,120]
[393784054,1762981997805,-150.0,0.00057468,120]
[393784055,1762981997844,-300.0,0.0005747,30]
[393784056,1762981997883,-150.0,0.00057479,120]
[393784057,1762981997931,-150.0,0.00057481,120]
[393784058,1762981997973,-150.0,0.00057495,120]
[393784059,1762981998015,-395.80915067,0.000575,30]
[393784060,1762981998055,-757.0,0.000575,30]
[393784061,1762981998095,-150.0,0.00057501,120]
[393784062,1762981998137,-150.0,0.00057507,120]
[393784063,1762981998178,-593.14,0.00057534,120]
[393784064,1762981998218,-544.93,0.00057534,120]
[393784065,1762981998260,-3230.71,0.00057534,120]
[393784066,1762981998301,-500.0,0.00057534,120]
[393784067,1762981998344,-289.54644971,0.00057534,120]
[393784068,1762981998386,-1210.02,0.00057534,120]
[393784069,1762981998432,-150.0,0.00057557,120]
[393784070,1762981998475,-150.0,0.0005756,120]
[393784071,1762981998518,-150.0,0.00057571,120]
[393784072,1762981998559,-150.0,0.00057571,120]
[393784073,1762981998599,-150.0,0.00057581,120]
[393784074,1762981998639,-150.0,0.00057595,120]
[393784075,1762981998680,-150.0,0.00057605,120]
[393784076,1762981998718,-150.0,0.00057608,120]
[393784077,1762981998758,-150.0,0.00057641,120]
[393784078,1762981998798,-150.0,0.00057649,120]
[393784079,1762981998837,-150.0,0.00057654,120]
[393784080,1762981998878,-150.0,0.00057658,120]
[393784081,1762981998918,-150.0,0.00057663,120]
[393784082,1762981998960,-150.0,0.00057686,120]
[393784083,1762981999001,-150.0,0.0005771,120]
[393784084,1762981999044,-150.0,0.00057723,120]
[393784085,1762981999085,-150.0,0.00057727,120]
[393784086,1762981999125,-150.0,0.00057744,120]
[393784087,1762981999168,-150.0,0.00057749,120]
[393784088,1762981999211,-150.0,0.00057769,120]
[393784089,1762981999254,-150.0,0.00057769,120]
[393784090,1762981999295,-150.0,0.00057801,120]
[393784091,1762981999338,-150.0,0.00057802,120]
[393784092,1762981999379,-150.0,0.00057804,120]
[393784093,1762981999422,-593.14,0.00057808,120]
[393784094,1762981999467,-544.93,0.00057808,120]
[393784095,1762981999512,-3230.71,0.00057808,120]
[393784096,1762981999553,-544.04029763,0.00057808,120]
[393784097,1762981999592,-1210.02,0.00057808,120]
[393784098,1762981999630,-150.0,0.00057814,120]
[393784099,1762981999672,-150.0,0.00057817,120]
[393784100,1762981999716,-150.0,0.00057831,120]
[393784101,1762981999762,-150.0,0.00057874,120]
[393784102,1762981999803,-150.0,0.00057875,120]
[393784103,1762981999847,-150.0,0.00057885,120]
[393784104,1762981999888,-150.0,0.0005789,120]
[393784105,1762981999930,-153.0,0.000579,120]
[393784106,1762981999973,-150.0,0.00057918,120]
[393784107,1762982000017,-150.0,0.00057918,120]
[393784108,1762982000060,-150.0,0.00057918,120]
[393784109,1762982000105,-150.0,0.00057918,120]
[393784110,1762982000149,-150.0,0.00057947,120]
[393784111,1762982000195,-150.0,0.00057951,120]
[393784112,1762982000238,-150.0,0.00057967,120]
[393784113,1762982000281,-150.0,0.00057982,120]
[393784114,1762982000325,-150.0,0.00057985,120]
[393784115,1762982000367,-1000.0,0.00057999,120]
[393784116,1762982000408,-200.0,0.00058,120]
[393784117,1762982000449,-3000.0,0.00058,120]
[393784118,1762982000489,-150.0,0.0005802,120]
[393784119,1762982000529,-150.0,0.00058022,120]
[393784120,1762982000568,-150.0,0.0005803,120]
[393784121,1762982000608,-150.0,0.00058033,120]
[393784122,1762982000648,-150.0,0.00058048,120]
[393784123,1762982000686,-150.0,0.00058048,120]
[393784124,1762982000725,-447.740925,0.00058066,120]
[393784125,1762982000766,-593.14,0.00058082,120]
[393784126,1762982000805,-544.93,0.00058082,120]
[393784127,1762982000846,-3230.71,0.00058082,120]
[393784128,1762982000898,-1210.02,0.00058082,120]
[393784129,1762982000944,-150.0,0.00058088,120]
[393784130,1762982000990,-150.0,0.00058091,120]
[393784131,1762982001034,-150.0,0.00058094,120]
[393784132,1762982001080,-150.0,0.00058126,120]
[393784133,1762982001128,-150.0,0.00058129,120]
[393784134,1762982001180,-150.0,0.00058141,120]
[393784135,1762982001233,-150.0,0.00058149,120]
[393784136,1762982001410,-150.0,0.00058153,120]
[393784137,1762982001460,-150.0,0.00058167,120]
[393784138,1762982001507,-150.0,0.00058171,120]
[393784139,1762982001552,-150.0,0.00058178,120]
[393784140,1762982001596,-150.0,0.00058194,120]
[393784141,1762982001643,-150.0,0.00058211,120]
[393784142,1762982001689,-150.0,0.0005823,120]
[393784143,1762982001732,-150.0,0.0005824,120]
[393784144,1762982001773,-150.0,0.00058265,120]
[393784145,1762982001820,-150.0,0.00058265,120]
[393784146,1762982001868,-150.0,0.00058265,120]
[393784147,1762982001913,-150.0,0.00058265,120]
[393784148,1762982001957,-150.0,0.00058265,120]
[393784149,1762982002001,-150.0,0.00058265,120]
[393784150,1762982002045,-150.0,0.00058292,120]
[393784151,1762982002086,-150.0,0.000583,120]
[393784152,1762982002129,-150.0,0.00058312,120]
[393784153,1762982002173,-150.0,0.00058314,120]
[393784154,1762982002215,-150.0,0.00058321,120]
[393784155,1762982002255,-150.0,0.00058334,120]
[393784156,1762982002296,-500.0,0.00058356,120]
[393784157,1762982002337,-500.0,0.00058356,120]
[393784158,1762982002378,-500.0,0.00058356,120]
[393784159,1762982002419,-593.26,0.00058356,120]
[393784160,1762982002464,-545.16872217,0.00058356,120]
[393784161,1762982002508,-3230.80435582,0.00058356,120]
[393784162,1762982002550,-1210.095,0.00058356,120]
[393784163,1762982002590,-150.0,0.00058373,120]
[393784164,1762982002632,-150.0,0.00058381,120]
[393784165,1762982002675,-150.0,0.00058387,120]
[393784166,1762982002718,-155.0,0.000584,120]
[393784167,1762982002765,-150.0,0.00058406,120]
[393784168,1762982002809,-150.0,0.00058438,120]
[393784169,1762982002856,-150.0,0.00058438,120]
[393784170,1762982002901,-150.0,0.00058438,120]
[393784171,1762982002951,-150.0,0.00058452,120]
[393784172,1762982002997,-150.0,0.00058455,120]
[393784173,1762982003045,-150.0,0.0005846,120]
[393784174,1762982003091,-150.0,0.00058489,120]
[393784175,1762982003136,-150.0,0.00058496,120]
[393784176,1762982003181,-352.1154,0.000585,120]
[393784177,1762982003225,-150.0,0.00058513,120]
[393784178,1762982003267,-150.0,0.00058513,120]
[393784179,1762982003309,-150.0,0.00058534,120]
[393784180,1762982003352,-150.0,0.00058536,120]
[393784181,1762982003396,-150.0,0.00058542,120]
[393784182,1762982003441,-150.0,0.00058593,120]
[393784183,1762982003486,-150.0,0.00058607,120]
[393784184,1762982003530,-150.0,0.00058612,120]
[393784185,1762982003575,-150.0,0.00058612,120]
[393784186,1762982003618,-150.0,0.00058617,120]
[393784187,1762982003660,-150.0,0.00058619,120]
[393784188,1762982003705,-150.0,0.00058647,120]
[393784189,1762982003749,-150.0,0.00058657,120]
[393784190,1762982003791,-150.0,0.0005868,120]
[393784191,1762982003834,-150.0,0.00058699,120]
[393784192,1762982003886,-150.0,0.00058699,120]
[393784193,1762982003932,-150.0,0.00058699,120]
[393784194,1762982003980,-150.0,0.00058699,120]
[393784195,1762982004026,-153.0,0.000587,120]
[393784196,1762982004071,-150.0,0.00058725,120]
[393784197,1762982004116,-150.0,0.00058728,120]
[393784198,1762982004162,-150.0,0.00058734,120]
[393784199,1762982004210,-150.0,0.00058751,120]